bitfinex/quotes_BTCUSD_20250711
["timestamp","ask_amount","ask_price","bid_price","bid_amount"]
[1752226939445,0.3932,118530.0,118520.0,0.14176]
[1752226940972,0.3932,118530.0,118500.0,0.0021097]
[1752226941185,0.3932,118530.0,118510.0,0.14176]
[1752226942883,0.3932,118530.0,118500.0,0.08429504]
[1752226943094,0.3932,118530.0,118500.0,0.12510176]
[1752226944149,0.3932,118530.0,118510.0,0.14132]
[1752226945680,0.3932,118530.0,118500.0,0.12510176]
[1752226945938,0.3932,118530.0,118510.0,0.1412]
[1752226947925,0.0272,118520.0,118500.0,0.12510176]
[1752226948135,0.0272,118520.0,118510.0,0.14108]
[1752226948345,0.0272,118520.0,118510.0,0.16769818]
[1752226949019,0.3941,118530.0,118510.0,0.16769818]
[1752226951956,0.3941,118530.0,118510.0,0.23519164]
[1752226952332,0.00837107,118550.0,118510.0,0.42262157]
[1752226952333,0.06187107,118550.0,118510.0,0.42262157]
[1752226952537,0.06187107,118550.0,118520.0,0.08542993]
[1752226952742,0.4535,118550.0,118530.0,0.28428]
[1752226953272,0.34,118540.0,118530.0,0.28428]
[1752226959905,0.051403,118560.0,118530.0,0.36970993]
[1752226960111,0.0533,118560.0,118530.0,0.41970993]
[1752226960245,0.0533,118560.0,118530.0,0.44650993]
[1752226960447,0.0533,118560.0,118530.0,0.49486714]
[1752226960850,0.0533,118560.0,118530.0,0.51996714]
[1752226961263,0.3646,118570.0,118530.0,0.51996714]
[1752226961481,0.3918,118570.0,118530.0,0.51996714]
[1752226962106,0.4003382,118570.0,118540.0,0.08542993]
[1752226962311,0.3757382,118570.0,118550.0,0.28272]
[1752226962663,0.3485382,118570.0,118540.0,0.19932664]
[1752226962866,0.3485382,118570.0,118540.0,0.14732993]
[1752226962994,0.4027382,118570.0,118540.0,0.09542993]
[1752226963407,0.3757382,118570.0,118540.0,0.09542993]
[1752226963610,0.027,118560.0,118550.0,0.28232]
[1752226963958,0.4028382,118570.0,118550.0,0.28232]
[1752226964166,0.4028382,118570.0,118550.0,0.32009499]
[1752226965184,0.3943,118570.0,118550.0,0.32009499]
[1752226965386,0.7943,118570.0,118550.0,0.32009499]
[1752226965725,0.79394293,118570.0,118550.0,0.32009499]
[1752226966555,0.79386076,118570.0,118550.0,0.32009499]
[1752226968237,0.0517,118560.0,118550.0,0.32009499]
[1752226968961,0.0255,118560.0,118550.0,0.32009499]
[1752226969183,0.79126076,118570.0,118550.0,0.32009499]
[1752226970411,0.79126076,118570.0,118550.0,0.42009499]
[1752226972163,0.0537,118560.0,118550.0,0.13777499]
[1752226972373,0.0537,118560.0,118550.0,0.41989499]
[1752226974624,0.0537,118560.0,118550.0,0.38212]
[1752226975204,0.0532,118560.0,118550.0,0.38212]
[1752226976866,0.0532,118560.0,118550.0,0.1]
[1752226977074,0.13862993,118560.0,118550.0,0.1]
[1752226977275,0.49317078,118560.0,118550.0,0.1]
[1752226977505,0.49317078,118560.0,118550.0,0.168212]
[1752226978131,0.49267078,118560.0,118550.0,0.168212]
[1752226978751,0.89267078,118560.0,118550.0,0.168212]
[1752226979593,0.89217078,118560.0,118550.0,0.168212]
[1752226980715,1.03321078,118560.0,118550.0,0.1]
[1752226980972,1.08671816,118560.0,118550.0,0.1]
[1752226981432,1.07828376,118560.0,118550.0,0.1]
[1752226981623,1.12280358,118560.0,118550.0,0.1]
[1752226981920,1.11217434,118560.0,118550.0,0.1]
[1752226982120,0.95426554,118560.0,118550.0,0.1]
[1752226982365,1.11217441,118560.0,118550.0,0.1]
[1752226982579,1.11167434,118560.0,118550.0,0.1]
[1752226982772,1.27193125,118560.0,118550.0,0.09157152]
[1752226982993,0.90869256,118560.0,118550.0,0.09157152]
[1752226983202,1.05816653,118560.0,118550.0,0.09157152]
[1752226983401,1.06660065,118560.0,118550.0,0.09157152]
[1752226983536,0.90919256,118560.0,118550.0,0.09157152]
[1752226983749,1.05023256,118560.0,118550.0,0.09157152]
[1752226983980,1.04923256,118560.0,118550.0,0.09157152]
[1752226984199,0.90919256,118560.0,118550.0,0.09157152]
[1752226984420,1.05019256,118560.0,118550.0,0.09157152]
[1752226984640,1.04969256,118560.0,118550.0,0.09157152]
[1752226984853,1.07499491,118560.0,118550.0,0.08314119]
[1752226985072,0.94242938,118560.0,118550.0,0.07471086]
[1752226985305,0.93399491,118560.0,118550.0,0.07471086]
[1752226985538,1.07499491,118560.0,118550.0,0.06628053]
[1752226985763,1.07449491,118560.0,118550.0,0.06628053]
[1752226985992,1.08292938,118560.0,118550.0,0.06628053]
[1752226986204,1.10823538,118560.0,118550.0,0.06628053]
[1752226986901,1.09980091,118560.0,118550.0,0.06628053]
[1752226987328,1.08293246,118560.0,118550.0,0.06628053]
[1752226987528,1.0913665,118560.0,118550.0,0.06628053]
[1752226987850,1.09766184,118560.0,118550.0,0.06628053]
[1752226988051,0.93135978,118560.0,118550.0,0.06628053]
[1752226988218,1.055338,118560.0,118550.0,0.06628053]
[1752226988626,0.914338,118560.0,118550.0,0.17040204]
[1752226988809,1.04079715,118560.0,118550.0,0.17040204]
[1752226989034,0.89979715,118560.0,118550.0,0.17040204]
[1752226989218,0.87893593,118560.0,118550.0,0.17040204]
[1752226989532,0.89347678,118560.0,118550.0,0.17040204]
[1752226990327,0.792506,118560.0,118550.0,0.17040204]
[1752226990733,0.793506,118560.0,118550.0,0.17040204]
[1752226990935,0.934506,118560.0,118550.0,0.17040204]
[1752226991351,0.907306,118560.0,118550.0,0.13377399]
[1752226992677,0.366306,118560.0,118550.0,0.13377399]
[1752226992922,0.001,118560.0,118550.0,0.13377399]
[1752226993565,0.74,118570.0,118550.0,0.13377399]
[1752226993785,0.74,118570.0,118560.0,0.28192]
[1752226994012,0.74,118570.0,118560.0,0.3259694]
[1752226995112,0.365299,118570.0,118560.0,0.3259694]
[1752226995330,0.025299,118570.0,118560.0,0.3766694]
[1752226995762,0.1002,118580.0,118570.0,0.0264]
[1752226995987,0.1002,118580.0,118570.0,0.10167993]
[1752226996416,0.1002,118580.0,118570.0,0.23710986]
[1752226997303,0.4402,118580.0,118570.0,0.07517993]
[1752226997526,0.4402,118580.0,118570.0,0.04877993]
[1752226998388,0.4402,118580.0,118570.0,0.07537993]
[1752226998555,0.4402,118580.0,118570.0,0.10187993]
[1752226998735,0.4402,118580.0,118570.0,0.23730986]
[1752226999120,0.1002,118580.0,118570.0,0.23730986]
[1752227000364,0.1012,118580.0,118570.0,0.30480332]
[1752227001978,0.1012,118580.0,118570.0,0.23730986]
[1752227007655,0.1012,118580.0,118570.0,0.21080986]
[1752227008702,0.1012,118580.0,118570.0,0.18420986]
[1752227009377,0.4412,118580.0,118570.0,0.08355793]
[1752227009547,0.4942,118580.0,118570.0,0.14084]
[1752227010156,0.394,118570.0,118560.0,0.3440494]
[1752227010362,0.394,118570.0,118560.0,0.4848494]
[1752227011221,0.13942993,118570.0,118560.0,0.3]
[1752227011536,0.15397078,118570.0,118560.0,0.3]
[1752227011758,0.49397078,118570.0,118560.0,0.3]
[1752227012034,0.51083737,118570.0,118560.0,0.3]
[1752227012246,0.50240397,118570.0,118560.0,0.3]
[1752227012647,0.5356393,118570.0,118560.0,0.3]
[1752227012845,0.5525064,118570.0,118560.0,0.3]
[1752227012969,0.82508493,118570.0,118560.0,0.3]
[1752227013168,0.72278819,118570.0,118560.0,0.3]
[1752227014107,0.5541111,118570.0,118560.0,0.3]
[1752227014324,0.56254486,118570.0,118560.0,0.3]
[1752227015342,0.73122159,118570.0,118560.0,0.3]
[1752227015512,0.72278819,118570.0,118560.0,0.3]
[1752227015752,0.7997845,118570.0,118560.0,0.2999]
[1752227015930,0.94901805,118570.0,118560.0,0.2999]
[1752227016570,0.78034132,118570.0,118560.0,0.2999]
[1752227016900,0.78577458,118570.0,118560.0,0.2999]
[1752227017320,0.79420841,118570.0,118560.0,0.2999]
[1752227017524,0.96288514,118570.0,118560.0,0.2999]
[1752227017744,0.95888514,118570.0,118560.0,0.2999]
[1752227017916,0.79020841,118570.0,118560.0,0.2999]
[1752227018247,0.81560147,118570.0,118560.0,0.2999]
[1752227018394,0.98427813,118570.0,118560.0,0.2999]
[1752227018597,0.98427863,118570.0,118560.0,0.2999]
[1752227018828,0.97584508,118570.0,118560.0,0.2999]
[1752227019258,0.79030055,118570.0,118560.0,0.2999]
[1752227019457,0.79030033,118570.0,118560.0,0.2999]
[1752227019656,0.79873381,118570.0,118560.0,0.2999]
[1752227019895,0.79873381,118570.0,118560.0,0.2998]
[1752227020303,0.78026251,118570.0,118560.0,0.2998]
[1752227020495,0.78026251,118570.0,118560.0,0.2997]
[1752227020649,0.62259577,118570.0,118560.0,0.2997]
[1752227020939,0.025302,118570.0,118560.0,0.2997]
[1752227021098,0.1002,118580.0,118560.0,0.58126]
[1752227021275,0.1002,118580.0,118570.0,0.06960191]
[1752227021467,0.1002,118580.0,118570.0,0.06749346]
[1752227022302,0.4402,118580.0,118570.0,0.06749346]
[1752227022505,0.4402,118580.0,118570.0,0.13736881]
[1752227022676,0.1002,118580.0,118570.0,0.13736881]
[1752227023079,0.1002,118580.0,118570.0,0.06987535]
[1752227024496,0.1022,118580.0,118570.0,0.06987535]
[1752227024699,0.5022,118580.0,118570.0,0.06987535]
[1752227025858,0.5002,118580.0,118570.0,0.06987535]
[1752227029472,0.49803337,118580.0,118570.0,0.06987535]
[1752227029868,0.50003337,118580.0,118570.0,0.06987535]
[1752227032062,0.55083337,118580.0,118570.0,0.06987535]
[1752227032506,0.6362633,118580.0,118570.0,0.21051535]
[1752227033152,0.65080415,118580.0,118570.0,0.21051535]
[1752227035251,0.79144415,118580.0,118570.0,0.06987535]
[1752227036169,0.80830932,118580.0,118570.0,0.06987535]
[1752227036375,0.7059418,118580.0,118560.0,0.64034]
[1752227036591,0.0547,118570.0,118560.0,0.64034]
[1752227036797,0.4547,118570.0,118560.0,0.64034]
[1752227037434,0.54012993,118570.0,118560.0,0.64034]
[1752227037846,0.54012993,118570.0,118560.0,0.7177514]
[1752227038265,0.55467078,118570.0,118560.0,0.7177514]
[1752227038472,0.90310411,118570.0,118560.0,0.4997]
[1752227038679,0.51997113,118570.0,118560.0,0.4997]
[1752227038902,0.51153751,118570.0,118560.0,0.4997]
[1752227039109,0.51997106,118570.0,118560.0,0.4997]
[1752227039328,0.52097106,118570.0,118560.0,0.4997]
[1752227039550,0.51253751,118570.0,118560.0,0.4997]
[1752227039770,0.50310411,118570.0,118560.0,0.4997]
[1752227039998,0.49667078,118570.0,118560.0,0.57035405]
[1752227040224,0.42742993,118570.0,118560.0,0.57035405]
[1752227040673,0.342,118570.0,118560.0,0.57035405]
[1752227040916,0.002,118570.0,118560.0,0.57035405]
[1752227041160,0.002,118570.0,118560.0,0.62265405]
[1752227042276,0.43803337,118580.0,118560.0,0.67265405]
[1752227042593,0.43803337,118580.0,118570.0,0.28108]
[1752227042809,0.43803337,118580.0,118570.0,0.36650993]
[1752227043749,0.5765633,118580.0,118570.0,0.28108]
[1752227044236,0.5785633,118580.0,118570.0,0.28108]
[1752227044447,0.58699585,118580.0,118570.0,0.28108]
[1752227044664,0.5785633,118580.0,118570.0,0.28108]
[1752227045122,0.44003337,118580.0,118570.0,0.28108]
[1752227045347,0.44003337,118580.0,118570.0,0.3662234]
[1752227045571,0.44003337,118580.0,118570.0,0.4673234]
[1752227047407,0.44003337,118580.0,118570.0,0.4689834]
[1752227048522,0.44498337,118580.0,118570.0,0.3678834]
[1752227048744,0.44003337,118580.0,118570.0,0.3678834]
[1752227049203,0.44003337,118580.0,118570.0,0.4206834]
[1752227049885,0.44003337,118580.0,118570.0,0.4706834]
[1752227050551,0.44003337,118580.0,118570.0,0.4178834]
[1752227053579,0.40003337,118580.0,118570.0,0.4178834]
[1752227055885,0.40498337,118580.0,118570.0,0.4178834]
[1752227057810,0.40003337,118580.0,118570.0,0.4189234]
[1752227058713,0.06003337,118580.0,118570.0,0.55765333]
[1752227058922,0.06003337,118580.0,118570.0,0.62514679]
[1752227060321,0.06003337,118580.0,118570.0,0.65150112]
[1752227060732,0.06003337,118580.0,118570.0,0.62514679]
[1752227062898,0.05803337,118580.0,118570.0,0.62410679]
[1752227063096,0.06298337,118580.0,118570.0,0.55595333]
[1752227063302,0.05803337,118580.0,118570.0,0.55761333]
[1752227063503,0.06298337,118580.0,118570.0,0.55595333]
[1752227063738,0.06298337,118580.0,118570.0,0.55495333]
[1752227063938,0.06298337,118580.0,118570.0,0.55861333]
[1752227063939,0.05803337,118580.0,118570.0,0.55861333]
[1752227064147,0.05803337,118580.0,118570.0,0.55965333]
[1752227064496,0.05803337,118580.0,118570.0,0.55861333]
[1752227065124,0.06298337,118580.0,118570.0,0.55695333]
[1752227065392,0.06298337,118580.0,118570.0,0.55861333]
[1752227065623,0.05803337,118580.0,118570.0,0.55861333]
[1752227065845,0.05803337,118580.0,118570.0,0.55965333]
[1752227066073,0.06298337,118580.0,118570.0,0.50365333]
[1752227066802,0.06298337,118580.0,118570.0,0.4175034]
[1752227069160,0.06298337,118580.0,118570.0,0.4155034]
[1752227070001,0.05803337,118580.0,118570.0,0.4171634]
[1752227070487,0.05803337,118580.0,118570.0,0.4182034]
[1752227071094,0.05803337,118580.0,118570.0,0.4171634]
[1752227071296,0.06098337,118580.0,118570.0,0.4171634]
[1752227071491,0.06298337,118580.0,118570.0,0.4155034]
[1752227072468,0.09058337,118580.0,118570.0,0.4155034]
[1752227072893,0.45638337,118580.0,118570.0,0.3655034]
[1752227073929,0.3934,118570.0,118560.0,0.57035405]
[1752227074146,0.39835,118570.0,118560.0,0.63978]
[1752227075040,0.0534,118570.0,118560.0,0.64144]
[1752227075250,0.05835,118570.0,118560.0,0.63978]
[1752227075910,0.14377993,118570.0,118560.0,0.63978]
[1752227076127,0.14377993,118570.0,118560.0,0.71038605]
[1752227076345,0.49832078,118570.0,118560.0,0.63978]
[1752227076556,0.50675404,118570.0,118560.0,0.63978]
[1752227076998,0.49832078,118570.0,118560.0,0.63978]
[1752227077452,0.50032078,118570.0,118560.0,0.63978]
[1752227077706,0.50032078,118570.0,118560.0,0.71038605]
[1752227077928,0.90032078,118570.0,118560.0,0.71038605]
[1752227082498,0.89537078,118570.0,118560.0,0.71204605]
[1752227082667,0.89537078,118570.0,118560.0,0.71308605]
[1752227082874,0.90059078,118570.0,118560.0,0.71038605]
[1752227083463,0.85589038,118570.0,118560.0,0.71038605]
[1752227086226,0.88139038,118570.0,118560.0,0.71038605]
[1752227086416,0.88139038,118570.0,118560.0,0.71204605]
[1752227086616,0.88139038,118570.0,118560.0,0.71038605]
[1752227088194,0.89825697,118570.0,118560.0,0.71038605]
[1752227088576,0.90669052,118570.0,118560.0,0.71038605]
[1752227088834,0.8982569,118570.0,118560.0,0.71038605]
[1752227089256,0.89825697,118570.0,118560.0,0.71038605]
[1752227089479,0.8982569,118570.0,118560.0,0.71038605]
[1752227089680,0.4982569,118570.0,118560.0,0.71038605]
[1752227090293,0.50669038,118570.0,118560.0,0.71038605]
[1752227090505,0.50669045,118570.0,118560.0,0.71038605]
[1752227090713,0.4982569,118570.0,118560.0,0.71038605]
[1752227091333,0.5066903,118570.0,118560.0,0.71038605]
[1752227091540,0.4982569,118570.0,118560.0,0.71038605]
[1752227092328,0.66693363,118570.0,118560.0,0.71038605]
[1752227092542,0.80673392,118570.0,118560.0,0.63978]
[1752227092751,0.82360116,118570.0,118560.0,0.4997]
[1752227092991,0.80673435,118570.0,118560.0,0.4997]
[1752227093208,0.63805762,118570.0,118560.0,0.4997]
[1752227093818,0.64449145,118570.0,118560.0,0.4997]
[1752227094229,0.81716818,118570.0,118560.0,0.4997]
[1752227094430,0.80030094,118570.0,118560.0,0.4997]
[1752227095574,0.80030094,118570.0,118560.0,0.49127007]
[1752227095817,0.80030094,118570.0,118560.0,0.4494196]
[1752227096041,1.09463288,118570.0,118560.0,0.41991482]
[1752227096256,1.09463288,118570.0,118560.0,0.41148489]
[1752227096704,1.06877224,118570.0,118560.0,0.37355018]
[1752227097114,1.15020217,118570.0,118560.0,0.36512025]
[1752227097474,1.01540217,118570.0,118560.0,0.35669032]
[1752227097704,1.06973224,118570.0,118560.0,0.31875561]
[1752227098180,1.06973224,118570.0,118560.0,0.31032568]
[1752227098369,1.06973224,118570.0,118560.0,0.2808209]
[1752227098573,1.06973224,118570.0,118560.0,0.27239097]
[1752227098789,0.92997224,118570.0,118560.0,0.27239097]
[1752227098944,1.06969224,118570.0,118560.0,0.23445626]
[1752227099144,0.68850056,118570.0,118560.0,0.23445626]
[1752227099310,0.82822056,118570.0,118560.0,0.23445626]
[1752227099514,0.45287785,118570.0,118560.0,0.23611626]
[1752227099717,0.45287785,118570.0,118560.0,0.23445626]
[1752227099975,0.44417825,118570.0,118560.0,0.23445626]
[1752227100134,0.4587191,118570.0,118560.0,0.23445626]
[1752227100335,0.10417825,118570.0,118560.0,0.29921929]
[1752227100538,0.09395825,118570.0,118560.0,0.30087929]
[1752227101013,0.09813825,118570.0,118560.0,0.30087929]
[1752227101213,0.10017825,118570.0,118560.0,0.29921929]
[1752227101433,0.4547191,118570.0,118560.0,0.29921929]
[1752227101755,0.4515391,118570.0,118560.0,0.30087929]
[1752227101961,0.4494991,118570.0,118560.0,0.30087929]
[1752227102236,0.4516791,118570.0,118560.0,0.30087929]
[1752227102460,0.4484991,118570.0,118560.0,0.23611626]
[1752227102701,0.35052832,118570.0,118560.0,0.23715626]
[1752227103151,0.75052832,118570.0,118560.0,0.23611626]
[1752227103417,0.83595825,118570.0,118560.0,0.23611626]
[1752227103624,0.83595825,118570.0,118560.0,0.23715626]
[1752227103838,0.43595825,118570.0,118560.0,0.23715626]
[1752227104042,0.43595825,118570.0,118560.0,0.30614929]
[1752227104472,0.35052832,118570.0,118560.0,0.40884929]
[1752227104693,0.35052832,118570.0,118560.0,0.40988929]
[1752227104903,0.01052832,118570.0,118560.0,0.40988929]
[1752227105324,0.35052832,118570.0,118560.0,0.40988929]
[1752227105739,0.35052832,118570.0,118560.0,0.40884929]
[1752227105955,0.35574832,118570.0,118560.0,0.30448929]
[1752227106161,0.35170832,118570.0,118560.0,0.30614929]
[1752227106379,0.34852832,118570.0,118560.0,0.30614929]
[1752227107057,0.43913825,118570.0,118560.0,0.30448929]
[1752227107507,0.43913825,118570.0,118560.0,0.23445626]
[1752227107728,0.68091314,118570.0,118560.0,0.23445626]
[1752227107972,0.84115604,118570.0,118560.0,0.23445626]
[1752227108221,0.68934769,118570.0,118560.0,0.23445626]
[1752227108434,0.70621458,118570.0,118560.0,0.23445626]
[1752227108891,0.68934755,118570.0,118560.0,0.23445626]
[1752227109113,0.46444025,118570.0,118560.0,0.27433707]
[1752227109329,0.46026025,118570.0,118560.0,0.27433707]
[1752227109542,0.46026025,118570.0,118560.0,0.32663707]
[1752227110428,0.46226025,118570.0,118560.0,0.27433707]
[1752227110715,0.46527025,118570.0,118560.0,0.27267707]
[1752227110937,0.46026025,118570.0,118560.0,0.27433707]
[1752227111159,0.46327025,118570.0,118560.0,0.27433707]
[1752227111366,0.46527025,118570.0,118560.0,0.27433707]
[1752227111586,0.46527025,118570.0,118560.0,0.27267707]
[1752227111803,0.4788111,118570.0,118560.0,0.17662289]
[1752227112025,0.51464436,118570.0,118560.0,0.17662289]
[1752227112244,0.54967784,118570.0,118560.0,0.17662289]
[1752227112460,0.55811153,118570.0,118560.0,0.17662289]
[1752227112682,0.54967784,118570.0,118560.0,0.17662289]
[1752227113346,1.118355,118570.0,118560.0,0.17662289]
[1752227113564,0.718355,118570.0,118560.0,0.17662289]
[1752227113795,0.969355,118570.0,118560.0,0.17662289]
[1752227114004,0.99521564,118570.0,118560.0,0.17662289]
[1752227114448,1.01368694,118570.0,118560.0,0.17662289]
[1752227114666,0.9878263,118570.0,118560.0,0.17662289]
[1752227115126,0.9868263,118570.0,118560.0,0.17662289]
[1752227115571,0.9888263,118570.0,118560.0,0.16819366]
[1752227116002,0.9888263,118570.0,118560.0,0.15976443]
[1752227116003,0.9868263,118570.0,118560.0,0.15976443]
[1752227116427,0.9898263,118570.0,118560.0,0.1513352]
[1752227116629,0.9898263,118570.0,118560.0,0.14290597]
[1752227117016,0.9898263,118570.0,118560.0,0.13447514]
[1752227117472,0.9898263,118570.0,118560.0,0.12604431]
[1752227117887,1.07525623,118570.0,118560.0,0.11761348]
[1752227118279,1.07525623,118570.0,118560.0,0.10918265]
[1752227118728,1.07525623,118570.0,118560.0,0.10075182]
[1752227118980,1.07225623,118570.0,118560.0,0.10075182]
[1752227119182,1.21169623,118570.0,118560.0,0.09232099]
[1752227119384,1.21569623,118570.0,118560.0,0.09232099]
[1752227119587,1.21569623,118570.0,118560.0,0.08389016]
[1752227119800,1.07625623,118570.0,118560.0,0.08389016]
[1752227120008,1.21569623,118570.0,118560.0,0.07545933]
[1752227120191,1.21569623,118570.0,118560.0,0.0670285]
[1752227120431,1.07625623,118570.0,118560.0,0.0670285]
[1752227120641,1.21569623,118570.0,118560.0,0.05859767]
[1752227121065,1.21569623,118570.0,118560.0,0.05016684]
[1752227121066,1.07625623,118570.0,118560.0,0.05016684]
[1752227121501,1.111795,118570.0,118560.0,0.04173601]
[1752227121926,1.111795,118570.0,118560.0,0.03330518]
[1752227122356,1.111795,118570.0,118560.0,0.02487435]
[1752227122777,1.111795,118570.0,118560.0,0.01644352]
[1752227123190,1.111795,118570.0,118560.0,0.00801214]
[1752227123666,1.19722493,118570.0,118560.0,0.00801214]
[1752227124304,1.19722493,118570.0,118550.0,0.06628053]
[1752227124305,0.5854662,118560.0,118550.0,0.06628053]
[1752227124514,0.81229613,118560.0,118550.0,0.06628053]
[1752227124728,0.81530613,118560.0,118550.0,0.06628053]
[1752227125844,0.81530613,118560.0,118550.0,0.05784915]
[1752227126062,0.85329872,118560.0,118550.0,0.05784915]
[1752227126301,0.82743808,118560.0,118550.0,0.04941777]
[1752227126725,0.82743808,118560.0,118550.0,0.04098639]
[1752227127142,0.82743808,118560.0,118550.0,0.03255501]
[1752227127549,0.82743808,118560.0,118550.0,0.02412363]
[1752227127967,0.83043808,118560.0,118550.0,0.01569225]
[1752227128399,0.83043808,118560.0,118550.0,0.00726087]
[1752227128580,0.01454085,118530.0,118510.0,0.40103346]
[1752227128786,0.49390085,118530.0,118520.0,0.0027]
[1752227128997,0.41454085,118520.0,118510.0,0.12219346]
[1752227129209,0.49997078,118520.0,118510.0,0.12385346]
[1752227130486,0.50498078,118520.0,118510.0,0.0547]
[1752227130718,0.49997078,118520.0,118510.0,0.05636]
[1752227130989,0.50498078,118520.0,118510.0,0.007296]
[1752227131284,0.51341753,118520.0,118510.0,0.00166]
[1752227131528,0.53872891,118520.0,118510.0,0.001]
[1752227131744,0.53834351,118520.0,118510.0,0.001]
[1752227131949,0.5467804,118520.0,118510.0,0.001]
[1752227132359,0.53834351,118520.0,118510.0,0.001]
[1752227132567,0.53834365,118520.0,118510.0,0.001]
[1752227132778,0.53834358,118520.0,118510.0,0.001]
[1752227132986,0.52990676,118520.0,118510.0,0.001]
[1752227133489,0.52489676,118520.0,118510.0,0.0024]
[1752227134184,0.34,118510.0,118500.0,0.0546]
[1752227134401,0.34,118510.0,118500.0,0.08189735]
[1752227134402,0.42542993,118510.0,118500.0,0.08189735]
[1752227135062,0.34,118510.0,118500.0,0.27117735]
[1752227136406,0.36531,118510.0,118500.0,0.27117735]
[1752227139042,0.36531,118510.0,118500.0,0.27217735]
[1752227139262,0.36531,118510.0,118500.0,0.24488]
[1752227139711,0.37041,118510.0,118500.0,0.1056]
[1752227139957,0.36531,118510.0,118500.0,0.1056]
[1752227140151,0.36531,118510.0,118500.0,0.104103]
[1752227140384,0.36531,118510.0,118500.0,0.1384373]
[1752227154100,0.02531,118510.0,118500.0,0.29347039]
[1752227154302,0.18560823,118560.0,118530.0,0.0584]
[1752227154508,0.09386454,118550.0,118540.0,0.27804]
[1752227154716,0.43386454,118550.0,118540.0,0.27804]
[1752227155172,0.43997078,118550.0,118540.0,0.27804]
[1752227155367,0.12527578,118550.0,118540.0,0.27804]
[1752227155576,0.11073493,118550.0,118540.0,0.317768]
[1752227155754,0.11073493,118550.0,118540.0,0.375268]
[1752227156393,0.45073493,118550.0,118540.0,0.375268]
[1752227156598,0.00858393,118570.0,118550.0,0.0575]
[1752227156859,0.09401386,118570.0,118560.0,0.27796]
[1752227157054,0.08542993,118570.0,118560.0,0.311506]
[1752227157256,0.08542993,118570.0,118560.0,0.369206]
[1752227157456,0.42542993,118570.0,118560.0,0.369206]
[1752227157845,0.08542993,118570.0,118560.0,0.341306]
[1752227158051,0.09997078,118570.0,118560.0,0.341306]
[1752227158252,0.43997078,118570.0,118560.0,0.341306]
[1752227158644,0.43997078,118570.0,118560.0,0.311506]
[1752227159053,0.44831948,118570.0,118560.0,0.311506]
[1752227160766,0.44831948,118570.0,118560.0,0.416206]
[1752227160767,0.0083487,118570.0,118560.0,0.416206]
[1752227161174,0.002,118570.0,118560.0,0.416206]
[1752227162214,0.002,118570.0,118560.0,0.44255873]
[1752227163395,0.002,118570.0,118560.0,0.416206]
[1752227164835,0.00862246,118580.0,118560.0,0.416206]
[1752227165034,0.09405239,118580.0,118560.0,0.32796]
[1752227165248,0.34,118570.0,118560.0,0.27796]
[1752227167160,0.08542993,118570.0,118560.0,0.27796]
[1752227167493,0.09997078,118570.0,118560.0,0.27796]
[1752227167721,0.12526978,118570.0,118560.0,0.27796]
[1752227167918,0.12526978,118570.0,118560.0,0.314086]
[1752227168334,0.09997078,118570.0,118560.0,0.314086]
[1752227168731,0.08542993,118570.0,118560.0,0.314086]
[1752227168932,0.34862246,118580.0,118560.0,0.364086]
[1752227169109,0.43405239,118580.0,118560.0,0.422886]
[1752227170156,0.09405239,118580.0,118560.0,0.422886]
[1752227170350,0.00862246,118580.0,118570.0,0.05]
[1752227170555,0.00862246,118580.0,118570.0,0.1494886]
[1752227172339,0.03392046,118580.0,118570.0,0.1494886]
[1752227172876,0.00862246,118580.0,118570.0,0.1494886]
[1752227173506,0.00862246,118580.0,118570.0,0.14458159]
[1752227174999,0.00962246,118580.0,118570.0,0.14458159]
[1752227175179,0.00962246,118580.0,118570.0,0.24458159]
[1752227177402,0.0012,118580.0,118570.0,0.24458159]
[1752227178054,0.00955043,118580.0,118570.0,0.24458159]
[1752227178268,0.0012,118580.0,118570.0,0.24458159]
[1752227181821,0.0012,118580.0,118570.0,0.27078794]
[1752227182451,0.04842969,118630.0,118570.0,0.39750498]
[1752227182650,0.14372993,118630.0,118610.0,0.04509299]
[1752227182769,0.0284,118620.0,118610.0,0.04960229]
[1752227182972,0.0284,118620.0,118610.0,0.32660229]
[1752227183174,0.34,118620.0,118610.0,0.32660229]
[1752227184094,0.52240558,118630.0,118610.0,0.32660229]
[1752227184262,0.34,118620.0,118610.0,0.32660229]
[1752227184671,0.33743223,118620.0,118610.0,0.32660229]
[1752227192767,0.47956216,118620.0,118610.0,0.32624229]
[1752227193509,0.45216216,118620.0,118610.0,0.42624229]
[1752227193734,0.42286216,118620.0,118610.0,0.42624229]
[1752227194880,0.33743223,118620.0,118610.0,0.42624229]
[1752227196969,0.33743223,118620.0,118610.0,0.48304229]
[1752227197862,0.00857565,118630.0,118610.0,0.48304229]
[1752227198315,0.41244085,118640.0,118610.0,0.48304229]
[1752227198558,0.49787078,118640.0,118610.0,0.48304229]
[1752227200120,0.52315578,118640.0,118610.0,0.48304229]
[1752227201051,0.47383952,118640.0,118610.0,0.48304229]
[1752227201256,0.47383952,118640.0,118630.0,0.04509299]
[1752227201257,0.37386874,118640.0,118630.0,0.04509299]
[1752227201474,0.00858374,118640.0,118630.0,0.39976229]
[1752227201873,0.0002,118640.0,118630.0,0.39976229]
[1752227202903,0.00873399,118640.0,118630.0,0.39976229]
[1752227203056,0.0002,118640.0,118630.0,0.39976229]
[1752227204972,0.0002,118640.0,118630.0,0.47428744]
[1752227205798,0.0002,118640.0,118630.0,0.55971737]
[1752227206225,0.0002,118640.0,118630.0,0.61383027]
[1752227206664,1.429e-05,118640.0,118630.0,0.50945411]
[1752227207522,1.429e-05,118640.0,118630.0,0.61383027]
[1752227209048,0.0002,118670.0,118640.0,0.08446189]
[1752227209256,0.0002,118670.0,118650.0,0.27608]
[1752227209463,0.0281,118670.0,118650.0,0.27608]
[1752227209673,0.0585,118670.0,118650.0,0.27608]
[1752227209893,0.06676612,118670.0,118650.0,0.27608]
[1752227210109,0.03636612,118670.0,118650.0,0.27608]
[1752227210309,0.03636612,118670.0,118650.0,0.31829449]
[1752227210722,0.00846612,118670.0,118650.0,0.31829449]
[1752227210939,0.7995,118680.0,118650.0,0.31829449]
[1752227211149,0.88492993,118680.0,118650.0,0.31829449]
[1752227211985,0.025276,118670.0,118650.0,0.31829449]
[1752227212404,0.025276,118670.0,118650.0,0.37629449]
[1752227213042,0.025276,118670.0,118650.0,0.31829449]
[1752227213176,0.16990593,118670.0,118660.0,0.32097299]
[1752227213383,0.16990593,118670.0,118660.0,0.35729174]
[1752227213630,0.01454085,118660.0,118650.0,0.04509299]
[1752227213783,0.0592,118650.0,118640.0,0.17839299]
[1752227213995,0.35301701,118650.0,118640.0,0.1333]
[1752227214203,1.1031194,118650.0,118640.0,0.1333]